[Event "December 5 Early 2023"]
[Site "https://www.chess.com"]
[Date "2023.12.05"]
[Round "3"]
[White "Colonetti, Fabio"]
[Black "Herman, Matthew"]
[Result "0-1"]
[Board "201"]
[TimeControl "180+1"]
[WhiteFideId "897612"]
[BlackFideId "2028964"]
[WhiteElo "2282"]
[BlackElo "2485"]
[WhiteTeam "ITA"]
[BlackTeam "USA"]
[WhiteClock "0:00:07"]
[BlackClock "0:00:18"]

1. e4 {[%clk 0:03:00]}  e5 {[%clk 0:02:58]} 2. Nf3 {[%clk 0:03:00]}  Nc6 {[%clk 0:02:58]} 3. Bb5 {[%clk 0:02:55]}  a6 {[%clk 0:02:58]} 4. Ba4 {[%clk 0:02:55]}  Nf6 {[%clk 0:02:58]} 5. d3 {[%clk 0:02:52]}  b5 {[%clk 0:02:57]} 6. Bb3 {[%clk 0:02:52]}  Bc5 {[%clk 0:02:57]} 7. c3 {[%clk 0:02:48]}  d6 {[%clk 0:02:57]} 8. O-O {[%clk 0:02:47]}  Bg4 {[%clk 0:02:52]} 9. h3 {[%clk 0:02:47]}  Bh5 {[%clk 0:02:53]} 10. a4 {[%clk 0:02:45]}  b4 {[%clk 0:02:43]} 11. Bg5 {[%clk 0:02:43]}  h6 {[%clk 0:02:43]} 12. Bxf6 {[%clk 0:02:39]}  Qxf6 {[%clk 0:02:44]} 13. Bd5 {[%clk 0:02:39]}  Kd7 {[%clk 0:02:44]} 14. cxb4 {[%clk 0:02:16]}  Bxf3 {[%clk 0:02:39]} 15. gxf3 {[%clk 0:01:41]}  Nxb4 {[%clk 0:02:24]} 16. Bxa8 {[%clk 0:01:36]}  Rxa8 {[%clk 0:02:24]} 17. Nc3 {[%clk 0:01:35]}  Qg5+ {[%clk 0:02:16]} 18. Kh2 {[%clk 0:01:23]}  Qf4+ {[%clk 0:02:09]} 19. Kg2 {[%clk 0:01:20]}  Qg5+ {[%clk 0:02:01]} 20. Kh1 {[%clk 0:01:09]}  Qh4 {[%clk 0:02:01]} 21. Kg2 {[%clk 0:01:04]}  Re8 {[%clk 0:01:54]} 22. Qd2 {[%clk 0:00:59]}  Re6 {[%clk 0:01:53]} 23. Rh1 {[%clk 0:00:57]}  Nxd3 {[%clk 0:01:39]} 24. Kf1 {[%clk 0:00:41]}  Rf6 {[%clk 0:01:25]} 25. Ke2 {[%clk 0:00:37]}  Nxf2 {[%clk 0:00:52]} 26. Nd5 {[%clk 0:00:35]}  Rxf3 {[%clk 0:00:26]} 27. Kxf3 {[%clk 0:00:27]}  Qxe4+ {[%clk 0:00:26]} 28. Kg3 {[%clk 0:00:25]}  Nxh1+ {[%clk 0:00:26]} 29. Kh2 {[%clk 0:00:22]}  Nf2 {[%clk 0:00:22]} 30. Rf1 {[%clk 0:00:20]}  Qf3 {[%clk 0:00:17]} 31. b4 {[%clk 0:00:06]}  Qxh3+ {[%clk 0:00:17]} 32. Kg1 {[%clk 0:00:07]}  Qh1# {[%clk 0:00:18]} 0-1

[Event "December 5 Early 2023"]
[Site "https://www.chess.com"]
[Date "2023.12.05"]
[Round "3"]
[White "Nikologorsky, Matfei"]
[Black "Shubhi Gupta"]
[Result "0-1"]
[Board "202"]
[TimeControl "180+1"]
[WhiteFideId "24102474"]
[BlackFideId "25195425"]
[WhiteElo "2479"]
[BlackElo "2280"]
[WhiteTeam "FID"]
[BlackTeam "IND"]
[WhiteClock "0:00:10"]
[BlackClock "0:00:17"]

1. e4 {[%clk 0:03:00]}  e5 {[%clk 0:02:57]} 2. Nf3 {[%clk 0:02:59]}  Nc6 {[%clk 0:02:57]} 3. Bb5 {[%clk 0:02:59]}  a6 {[%clk 0:02:58]} 4. Ba4 {[%clk 0:02:59]}  Nf6 {[%clk 0:02:58]} 5. O-O {[%clk 0:02:59]}  Be7 {[%clk 0:02:59]} 6. Re1 {[%clk 0:02:58]}  b5 {[%clk 0:03:00]} 7. Bb3 {[%clk 0:02:58]}  d6 {[%clk 0:03:00]} 8. c3 {[%clk 0:02:57]}  O-O {[%clk 0:03:01]} 9. a4 {[%clk 0:02:57]}  Rb8 {[%clk 0:02:56]} 10. d4 {[%clk 0:02:55]}  Bg4 {[%clk 0:02:55]} 11. h3 {[%clk 0:02:31]}  Bxf3 {[%clk 0:02:53]} 12. Qxf3 {[%clk 0:02:31]}  exd4 {[%clk 0:02:53]} 13. axb5 {[%clk 0:02:22]}  axb5 {[%clk 0:02:50]} 14. Qg3 {[%clk 0:01:54]}  Re8 {[%clk 0:02:37]} 15. Bd5 {[%clk 0:01:50]}  Nxd5 {[%clk 0:02:30]} 16. exd5 {[%clk 0:01:50]}  Ne5 {[%clk 0:02:31]} 17. cxd4 {[%clk 0:01:50]}  Bh4 {[%clk 0:02:27]} 18. Qc3 {[%clk 0:01:45]}  b4 {[%clk 0:02:26]} 19. Qd2 {[%clk 0:01:39]}  Nc4 {[%clk 0:02:02]} 20. Qd1 {[%clk 0:01:38]}  Qf6 {[%clk 0:02:00]} 21. g3 {[%clk 0:01:32]}  Qg6 {[%clk 0:01:45]} 22. Kg2 {[%clk 0:01:24]}  f5 {[%clk 0:01:05]} 23. b3 {[%clk 0:01:21]}  Nb6 {[%clk 0:01:01]} 24. Ra5 {[%clk 0:01:05]}  Rxe1 {[%clk 0:00:58]} 25. Qxe1 {[%clk 0:01:04]}  Re8 {[%clk 0:00:59]} 26. Qxb4 {[%clk 0:00:55]}  Bxg3 {[%clk 0:00:48]} 27. fxg3 {[%clk 0:00:51]}  f4 {[%clk 0:00:48]} 28. Bxf4 {[%clk 0:00:35]}  Qxb1 {[%clk 0:00:42]} 29. Qd2 {[%clk 0:00:29]}  Qe4+ {[%clk 0:00:42]} 30. Kf2 {[%clk 0:00:29]}  Nxd5 {[%clk 0:00:39]} 31. Ra1 {[%clk 0:00:18]}  Nxf4 {[%clk 0:00:32]} 32. gxf4 {[%clk 0:00:18]}  Rf8 {[%clk 0:00:32]} 33. Kg3 {[%clk 0:00:18]}  Qg6+ {[%clk 0:00:25]} 34. Kh2 {[%clk 0:00:18]}  Qe4 {[%clk 0:00:19]} 35. Rf1 {[%clk 0:00:18]}  g5 {[%clk 0:00:16]} 36. Rg1 {[%clk 0:00:15]}  h6 {[%clk 0:00:12]} 37. fxg5 {[%clk 0:00:14]}  h5 {[%clk 0:00:11]} 38. Re1 {[%clk 0:00:11]}  Qf5 {[%clk 0:00:11]} 39. Qe3 {[%clk 0:00:09]}  Qc2+ {[%clk 0:00:11]} 40. Re2 {[%clk 0:00:09]}  Qf5 {[%clk 0:00:11]} 41. Qe6+ {[%clk 0:00:09]}  Qxe6 {[%clk 0:00:11]} 42. Rxe6 {[%clk 0:00:10]}  Rf3 {[%clk 0:00:12]} 43. b4 {[%clk 0:00:09]}  Rb3 {[%clk 0:00:12]} 44. Re8+ {[%clk 0:00:06]}  Kf7 {[%clk 0:00:12]} 45. Rc8 {[%clk 0:00:07]}  Rxb4 {[%clk 0:00:12]} 46. Rxc7+ {[%clk 0:00:07]}  Kg6 {[%clk 0:00:12]} 47. d5 {[%clk 0:00:07]}  Rd4 {[%clk 0:00:12]} 48. h4 {[%clk 0:00:07]}  Rxh4+ {[%clk 0:00:12]} 49. Kg3 {[%clk 0:00:07]}  Rd4 {[%clk 0:00:13]} 50. Rc8 {[%clk 0:00:03]}  Rxd5 {[%clk 0:00:14]} 51. Rg8+ {[%clk 0:00:04]}  Kf7 {[%clk 0:00:14]} 52. Rd8 {[%clk 0:00:02]}  Rxg5+ {[%clk 0:00:14]} 53. Kh4 {[%clk 0:00:02]}  Rd5 {[%clk 0:00:14]} 54. Rh8 {[%clk 0:00:02]}  Kg6 {[%clk 0:00:15]} 55. Rg8+ {[%clk 0:00:02]}  Kf7 {[%clk 0:00:14]} 56. Rh8 {[%clk 0:00:02]}  Re5 {[%clk 0:00:14]} 57. Rxh5 {[%clk 0:00:02]}  Rxh5+ {[%clk 0:00:14]} 58. Kxh5 {[%clk 0:00:03]}  Ke6 {[%clk 0:00:14]} 59. Kg4 {[%clk 0:00:04]}  Kd5 {[%clk 0:00:15]} 60. Kf3 {[%clk 0:00:05]}  Kc4 {[%clk 0:00:15]} 61. Ke3 {[%clk 0:00:05]}  d5 {[%clk 0:00:14]} 62. Kd2 {[%clk 0:00:05]}  Kd4 {[%clk 0:00:14]} 63. Ke2 {[%clk 0:00:06]}  Kc3 {[%clk 0:00:15]} 64. Kd1 {[%clk 0:00:07]}  Kd3 {[%clk 0:00:15]} 65. Kc1 {[%clk 0:00:07]}  Ke2 {[%clk 0:00:15]} 66. Kc2 {[%clk 0:00:08]}  d4 {[%clk 0:00:15]} 67. Kc1 {[%clk 0:00:09]}  d3 {[%clk 0:00:15]} 68. Kb2 {[%clk 0:00:10]}  d2 {[%clk 0:00:16]} 69. Kc3 {[%clk 0:00:10]}  d1=Q {[%clk 0:00:17]} 0-1

[Event "December 5 Early 2023"]
[Site "https://www.chess.com"]
[Date "2023.12.05"]
[Round "3"]
[White "Buksa, Nataliya"]
[Black "Obon Temprano, Sergi"]
[Result "1-0"]
[Board "204"]
[TimeControl "180+1"]
[WhiteFideId "14123622"]
[BlackFideId "2226545"]
[WhiteElo "2464"]
[BlackElo "2271"]
[WhiteTeam "UKR"]
[BlackTeam "ESP"]
[WhiteClock "0:00:40"]
[BlackClock "0:00:02"]

1. d4 {[%clk 0:03:00]}  d5 {[%clk 0:02:59]} 2. Nc3 {[%clk 0:03:00]}  Nf6 {[%clk 0:02:57]} 3. Bf4 {[%clk 0:03:01]}  e6 {[%clk 0:02:54]} 4. Nb5 {[%clk 0:03:00]}  Na6 {[%clk 0:02:53]} 5. e3 {[%clk 0:03:01]}  c6 {[%clk 0:02:52]} 6. Nc3 {[%clk 0:03:01]}  Nc7 {[%clk 0:02:51]} 7. Nf3 {[%clk 0:03:00]}  Bd6 {[%clk 0:02:50]} 8. Bd3 {[%clk 0:03:00]}  O-O {[%clk 0:02:49]} 9. O-O {[%clk 0:03:00]}  b6 {[%clk 0:02:46]} 10. Ne5 {[%clk 0:03:00]}  Bb7 {[%clk 0:02:43]} 11. Ne2 {[%clk 0:02:59]}  Qe7 {[%clk 0:02:33]} 12. c3 {[%clk 0:02:59]}  Nd7 {[%clk 0:02:33]} 13. Qc2 {[%clk 0:02:49]}  g6 {[%clk 0:02:25]} 14. Nxd7 {[%clk 0:02:17]}  Qxd7 {[%clk 0:02:24]} 15. Bxd6 {[%clk 0:02:17]}  Qxd6 {[%clk 0:02:24]} 16. e4 {[%clk 0:02:18]}  c5 {[%clk 0:02:19]} 17. e5 {[%clk 0:02:18]}  Qe7 {[%clk 0:02:18]} 18. Ng3 {[%clk 0:02:14]}  Ba6 {[%clk 0:02:14]} 19. Bxa6 {[%clk 0:02:11]}  Nxa6 {[%clk 0:02:15]} 20. Qd3 {[%clk 0:02:09]}  c4 {[%clk 0:02:14]} 21. Qe3 {[%clk 0:02:09]}  Kg7 {[%clk 0:02:11]} 22. Ne2 {[%clk 0:02:07]}  f5 {[%clk 0:02:03]} 23. exf6+ {[%clk 0:02:07]}  Qxf6 {[%clk 0:02:03]} 24. f4 {[%clk 0:02:07]}  Nc7 {[%clk 0:02:01]} 25. Rae1 {[%clk 0:02:06]}  Rae8 {[%clk 0:02:01]} 26. Kh1 {[%clk 0:02:06]}  Rf7 {[%clk 0:01:51]} 27. Ng1 {[%clk 0:02:02]}  Ref8 {[%clk 0:01:42]} 28. g3 {[%clk 0:01:54]}  Re7 {[%clk 0:01:35]} 29. Nf3 {[%clk 0:01:54]}  Ne8 {[%clk 0:01:35]} 30. Ng5 {[%clk 0:01:45]}  Nc7 {[%clk 0:01:23]} 31. Re2 {[%clk 0:01:42]}  h6 {[%clk 0:01:21]} 32. Nf3 {[%clk 0:01:43]}  Ne8 {[%clk 0:01:21]} 33. Rfe1 {[%clk 0:01:22]}  Nd6 {[%clk 0:01:16]} 34. Nd2 {[%clk 0:01:19]}  Nf5 {[%clk 0:00:59]} 35. Qe5 {[%clk 0:01:18]}  Qxe5 {[%clk 0:00:57]} 36. Rxe5 {[%clk 0:01:19]}  Rfe8 {[%clk 0:00:55]} 37. Kg2 {[%clk 0:01:18]}  Kf6 {[%clk 0:00:53]} 38. a4 {[%clk 0:01:17]}  Nd6 {[%clk 0:00:52]} 39. g4 {[%clk 0:01:15]}  Nf7 {[%clk 0:00:47]} 40. R5e3 {[%clk 0:01:11]}  Nd6 {[%clk 0:00:47]} 41. h4 {[%clk 0:01:09]}  Kf7 {[%clk 0:00:43]} 42. Nf3 {[%clk 0:01:01]}  Kg7 {[%clk 0:00:39]} 43. Ne5 {[%clk 0:01:01]}  Ne4 {[%clk 0:00:38]} 44. Rxe4 {[%clk 0:00:59]}  dxe4 {[%clk 0:00:38]} 45. Nxc4 {[%clk 0:01:00]}  Rf8 {[%clk 0:00:36]} 46. Rxe4 {[%clk 0:00:58]}  Ref7 {[%clk 0:00:35]} 47. Rxe6 {[%clk 0:00:49]}  Rxf4 {[%clk 0:00:34]} 48. Ne5 {[%clk 0:00:49]}  Rf2+ {[%clk 0:00:33]} 49. Kg3 {[%clk 0:00:50]}  Rxb2 {[%clk 0:00:27]} 50. Rxg6+ {[%clk 0:00:50]}  Kh7 {[%clk 0:00:28]} 51. Rc6 {[%clk 0:00:48]}  Rb3 {[%clk 0:00:17]} 52. Rc7+ {[%clk 0:00:47]}  Kg8 {[%clk 0:00:17]} 53. g5 {[%clk 0:00:47]}  hxg5 {[%clk 0:00:16]} 54. hxg5 {[%clk 0:00:48]}  Rf1 {[%clk 0:00:16]} 55. Kg4 {[%clk 0:00:44]}  Rb2 {[%clk 0:00:16]} 56. Kh5 {[%clk 0:00:43]}  Rg2 {[%clk 0:00:11]} 57. Kg6 {[%clk 0:00:43]}  a5 {[%clk 0:00:10]} 58. Nd7 {[%clk 0:00:40]}  Re2 {[%clk 0:00:02]} 59. Rc8+ {[%clk 0:00:40]} 1-0

[Event "December 5 Early 2023"]
[Site "https://www.chess.com"]
[Date "2023.12.05"]
[Round "3"]
[White "Travkina, Anastasia"]
[Black "Kraiouchkine, Nikita"]
[Result "1-0"]
[Board "206"]
[TimeControl "180+1"]
[WhiteFideId "24129151"]
[BlackFideId "2607140"]
[WhiteElo "2255"]
[BlackElo "2461"]
[WhiteTeam "RUS"]
[BlackTeam "CAN"]
[WhiteClock "0:00:22"]
[BlackClock "0:00:01"]

1. e4 {[%clk 0:03:00]}  e5 {[%clk 0:02:56]} 2. Nf3 {[%clk 0:03:00]}  Nc6 {[%clk 0:02:51]} 3. Bc4 {[%clk 0:02:59]}  Nf6 {[%clk 0:02:49]} 4. d4 {[%clk 0:02:58]}  exd4 {[%clk 0:02:47]} 5. Ng5 {[%clk 0:02:58]}  d5 {[%clk 0:02:42]} 6. exd5 {[%clk 0:02:58]}  Ne5 {[%clk 0:02:40]} 7. Qe2 {[%clk 0:02:57]}  Qe7 {[%clk 0:02:37]} 8. O-O {[%clk 0:02:57]}  Bg4 {[%clk 0:02:29]} 9. f3 {[%clk 0:02:49]}  Bh5 {[%clk 0:02:26]} 10. Bf4 {[%clk 0:02:28]}  Nfd7 {[%clk 0:02:23]} 11. Nd2 {[%clk 0:02:17]}  O-O-O {[%clk 0:02:04]} 12. Rae1 {[%clk 0:02:12]}  Re8 {[%clk 0:01:50]} 13. Qf2 {[%clk 0:02:02]}  h6 {[%clk 0:01:24]} 14. d6 {[%clk 0:01:54]}  cxd6 {[%clk 0:01:06]} 15. Nge4 {[%clk 0:01:45]}  g5 {[%clk 0:01:03]} 16. Bg3 {[%clk 0:01:36]}  Bg7 {[%clk 0:00:56]} 17. Nb3 {[%clk 0:01:15]}  f5 {[%clk 0:00:30]} 18. Bxe5 {[%clk 0:01:15]}  dxe5 {[%clk 0:00:28]} 19. Ned2 {[%clk 0:01:13]}  Qd6 {[%clk 0:00:24]} 20. Bb5 {[%clk 0:01:08]}  Re7 {[%clk 0:00:20]} 21. Nc4 {[%clk 0:01:08]}  Qc7 {[%clk 0:00:19]} 22. Nxd4 {[%clk 0:01:05]}  Nb6 {[%clk 0:00:17]} 23. Nxf5 {[%clk 0:00:48]}  Rf7 {[%clk 0:00:14]} 24. Ncd6+ {[%clk 0:00:45]}  Kb8 {[%clk 0:00:14]} 25. Nxf7 {[%clk 0:00:45]}  Qxf7 {[%clk 0:00:15]} 26. Nxg7 {[%clk 0:00:45]}  Qxg7 {[%clk 0:00:15]} 27. Qc5 {[%clk 0:00:43]}  Rc8 {[%clk 0:00:15]} 28. Qxe5+ {[%clk 0:00:42]}  Qxe5 {[%clk 0:00:16]} 29. Rxe5 {[%clk 0:00:43]}  Rxc2 {[%clk 0:00:16]} 30. Re2 {[%clk 0:00:40]}  Rc5 {[%clk 0:00:16]} 31. Bd3 {[%clk 0:00:39]}  Nd5 {[%clk 0:00:16]} 32. Re5 {[%clk 0:00:37]}  b6 {[%clk 0:00:15]} 33. Be4 {[%clk 0:00:37]}  Nf4 {[%clk 0:00:14]} 34. Rxc5 {[%clk 0:00:37]}  bxc5 {[%clk 0:00:15]} 35. Kf2 {[%clk 0:00:36]}  Bf7 {[%clk 0:00:14]} 36. Rc1 {[%clk 0:00:35]}  c4 {[%clk 0:00:12]} 37. b3 {[%clk 0:00:35]}  cxb3 {[%clk 0:00:12]} 38. axb3 {[%clk 0:00:36]}  Ne6 {[%clk 0:00:10]} 39. Rc4 {[%clk 0:00:34]}  Nc7 {[%clk 0:00:09]} 40. Rd4 {[%clk 0:00:33]}  Kc8 {[%clk 0:00:09]} 41. Bc6 {[%clk 0:00:31]}  Bxb3 {[%clk 0:00:09]} 42. Rb4 {[%clk 0:00:27]}  Be6 {[%clk 0:00:08]} 43. h4 {[%clk 0:00:27]}  Nd5 {[%clk 0:00:04]} 44. Bxd5 {[%clk 0:00:25]}  Bxd5 {[%clk 0:00:05]} 45. hxg5 {[%clk 0:00:26]}  hxg5 {[%clk 0:00:06]} 46. Rg4 {[%clk 0:00:26]}  Kc7 {[%clk 0:00:04]} 47. Rxg5 {[%clk 0:00:26]}  Kd6 {[%clk 0:00:05]} 48. Rg6+ {[%clk 0:00:23]}  Kc7 {[%clk 0:00:03]} 49. Ra6 {[%clk 0:00:23]}  Kb7 {[%clk 0:00:04]} 50. Ra5 {[%clk 0:00:24]}  Bc4 {[%clk 0:00:05]} 51. g4 {[%clk 0:00:24]}  Kb6 {[%clk 0:00:05]} 52. Ra1 {[%clk 0:00:23]}  a5 {[%clk 0:00:05]} 53. f4 {[%clk 0:00:23]}  a4 {[%clk 0:00:06]} 54. f5 {[%clk 0:00:23]}  Kb5 {[%clk 0:00:06]} 55. g5 {[%clk 0:00:24]}  Kb4 {[%clk 0:00:06]} 56. g6 {[%clk 0:00:23]}  Bd3 {[%clk 0:00:06]} 57. g7 {[%clk 0:00:20]}  Bc4 {[%clk 0:00:06]} 58. f6 {[%clk 0:00:20]}  a3 {[%clk 0:00:06]} 59. Ke3 {[%clk 0:00:20]}  Kb3 {[%clk 0:00:06]} 60. Kf4 {[%clk 0:00:21]}  Kb2 {[%clk 0:00:05]} 61. Rxa3 {[%clk 0:00:20]}  Kxa3 {[%clk 0:00:06]} 62. Kg5 {[%clk 0:00:21]}  Kb4 {[%clk 0:00:02]} 63. Kg6 {[%clk 0:00:21]}  Kc5 {[%clk 0:00:01]} 64. f7 {[%clk 0:00:22]} 1-0

[Event "December 5 Early 2023"]
[Site "https://www.chess.com"]
[Date "2023.12.05"]
[Round "3"]
[White "Fernandez Sanchez, Mario Andres"]
[Black "Yurasova, Daria"]
[Result "0-1"]
[Board "208"]
[TimeControl "180+1"]
[WhiteFideId "6501621"]
[BlackFideId "34146919"]
[WhiteElo "2233"]
[BlackElo "2445"]
[WhiteTeam "CRC"]
[BlackTeam "RUS"]
[WhiteClock "0:00:00"]
[BlackClock "0:00:11"]

1. d4 {[%clk 0:03:00]}  d5 {[%clk 0:02:56]} 2. Bf4 {[%clk 0:03:00]}  Nf6 {[%clk 0:02:54]} 3. Nc3 {[%clk 0:03:00]}  Bf5 {[%clk 0:02:53]} 4. f3 {[%clk 0:02:59]}  e6 {[%clk 0:02:53]} 5. g4 {[%clk 0:02:54]}  Bg6 {[%clk 0:02:54]} 6. h4 {[%clk 0:02:54]}  h5 {[%clk 0:02:54]} 7. g5 {[%clk 0:02:54]}  Nfd7 {[%clk 0:02:53]} 8. e3 {[%clk 0:02:48]}  c5 {[%clk 0:02:53]} 9. Bd3 {[%clk 0:02:48]}  Bxd3 {[%clk 0:02:52]} 10. Qxd3 {[%clk 0:02:46]}  g6 {[%clk 0:02:52]} 11. O-O-O {[%clk 0:02:45]}  c4 {[%clk 0:02:50]} 12. Qd2 {[%clk 0:02:39]}  a6 {[%clk 0:02:47]} 13. Nge2 {[%clk 0:02:35]}  b5 {[%clk 0:02:46]} 14. Ng3 {[%clk 0:02:34]}  b4 {[%clk 0:02:46]} 15. Nce2 {[%clk 0:02:34]}  Nc6 {[%clk 0:02:46]} 16. e4 {[%clk 0:02:31]}  Qa5 {[%clk 0:02:34]} 17. Kb1 {[%clk 0:02:29]}  Be7 {[%clk 0:02:32]} 18. b3 {[%clk 0:02:13]}  c3 {[%clk 0:02:29]} 19. Qc1 {[%clk 0:02:08]}  Qb6 {[%clk 0:02:29]} 20. exd5 {[%clk 0:02:07]}  exd5 {[%clk 0:02:29]} 21. Rhe1 {[%clk 0:02:05]}  a5 {[%clk 0:02:25]} 22. Qe3 {[%clk 0:01:50]}  a4 {[%clk 0:02:22]} 23. Nc1 {[%clk 0:01:48]}  axb3 {[%clk 0:02:20]} 24. cxb3 {[%clk 0:01:49]}  O-O {[%clk 0:02:10]} 25. Re2 {[%clk 0:01:45]}  Ra5 {[%clk 0:01:46]} 26. Rde1 {[%clk 0:01:42]}  Rfa8 {[%clk 0:01:46]} 27. Qd3 {[%clk 0:01:33]}  Bf8 {[%clk 0:01:44]} 28. Re8 {[%clk 0:01:11]}  Qxd4 {[%clk 0:01:37]} 29. Rxa8 {[%clk 0:00:24]}  Rxa8 {[%clk 0:01:35]} 30. Nge2 {[%clk 0:00:22]}  Qxd3+ {[%clk 0:01:32]} 31. Nxd3 {[%clk 0:00:22]}  Nc5 {[%clk 0:01:28]} 32. Nxc5 {[%clk 0:00:20]}  Bxc5 {[%clk 0:01:29]} 33. Nc1 {[%clk 0:00:19]}  Nd4 {[%clk 0:01:24]} 34. Nd3 {[%clk 0:00:17]}  Bf8 {[%clk 0:01:22]} 35. Rf1 {[%clk 0:00:17]}  Ne6 {[%clk 0:01:16]} 36. Be5 {[%clk 0:00:17]}  Ra7 {[%clk 0:00:53]} 37. f4 {[%clk 0:00:17]}  Rb7 {[%clk 0:00:51]} 38. f5 {[%clk 0:00:17]}  Nc5 {[%clk 0:00:51]} 39. Kc2 {[%clk 0:00:13]}  Nxd3 {[%clk 0:00:49]} 40. Kxd3 {[%clk 0:00:14]}  gxf5 {[%clk 0:00:46]} 41. Rxf5 {[%clk 0:00:14]}  Ra7 {[%clk 0:00:43]} 42. Rf2 {[%clk 0:00:14]}  Bg7 {[%clk 0:00:41]} 43. Kd4 {[%clk 0:00:08]}  Bxe5+ {[%clk 0:00:39]} 44. Kxe5 {[%clk 0:00:09]}  Ra5 {[%clk 0:00:29]} 45. Rc2 {[%clk 0:00:07]}  Kg7 {[%clk 0:00:26]} 46. Rf2 {[%clk 0:00:07]}  Rc5 {[%clk 0:00:23]} 47. Kd4 {[%clk 0:00:04]}  Rb5 {[%clk 0:00:21]} 48. Rc2 {[%clk 0:00:04]}  f5 {[%clk 0:00:19]} 49. Rf2 {[%clk 0:00:02]}  Kg6 {[%clk 0:00:19]} 50. Re2 {[%clk 0:00:02]}  Rb8 {[%clk 0:00:13]} 51. Re6+ {[%clk 0:00:01]}  Kg7 {[%clk 0:00:12]} 52. Rc6 {[%clk 0:00:00]}  f4 {[%clk 0:00:11]} 0-1

[Event "December 5 Early 2023"]
[Site "https://www.chess.com"]
[Date "2023.12.05"]
[Round "3"]
[White "Begunov, Konstantin"]
[Black "Dyulgerov, Volen"]
[Result "0-1"]
[Board "209"]
[TimeControl "180+1"]
[WhiteFideId "4118510"]
[BlackFideId "2918978"]
[WhiteElo "2437"]
[BlackElo "2230"]
[WhiteTeam "RUS"]
[BlackTeam "BUL"]
[WhiteClock "0:00:07"]
[BlackClock "0:00:04"]

1. d4 {[%clk 0:03:00]}  e5 {[%clk 0:02:57]} 2. dxe5 {[%clk 0:02:59]}  d6 {[%clk 0:02:57]} 3. Nf3 {[%clk 0:02:59]}  Nc6 {[%clk 0:02:56]} 4. Bg5 {[%clk 0:02:59]}  Qd7 {[%clk 0:02:49]} 5. exd6 {[%clk 0:02:57]}  Bxd6 {[%clk 0:02:50]} 6. Nc3 {[%clk 0:02:57]}  Qf5 {[%clk 0:02:23]} 7. e3 {[%clk 0:02:47]}  h6 {[%clk 0:02:15]} 8. Bh4 {[%clk 0:02:42]}  Be6 {[%clk 0:02:08]} 9. Nd4 {[%clk 0:02:18]}  Nxd4 {[%clk 0:02:04]} 10. Qxd4 {[%clk 0:02:19]}  Nf6 {[%clk 0:01:34]} 11. Bd3 {[%clk 0:02:08]}  Qa5 {[%clk 0:01:34]} 12. Bxf6 {[%clk 0:01:45]}  gxf6 {[%clk 0:01:34]} 13. Qxf6 {[%clk 0:01:42]}  Rg8 {[%clk 0:01:03]} 14. O-O {[%clk 0:01:33]}  Qh5 {[%clk 0:00:24]} 15. g3 {[%clk 0:01:18]}  Be5 {[%clk 0:00:17]} 16. Be2 {[%clk 0:01:05]}  Bg4 {[%clk 0:00:02]} 17. Bxg4 {[%clk 0:00:38]}  Rxg4 {[%clk 0:00:03]} 18. Nd5 {[%clk 0:00:38]}  Kf8 {[%clk 0:00:02]} 19. Qe7+ {[%clk 0:00:36]}  Kg8 {[%clk 0:00:02]} 20. Nf6+ {[%clk 0:00:31]}  Bxf6 {[%clk 0:00:02]} 21. Qxf6 {[%clk 0:00:32]}  Rg6 {[%clk 0:00:02]} 22. Qf4 {[%clk 0:00:29]}  Re8 {[%clk 0:00:03]} 23. Rfd1 {[%clk 0:00:28]}  Ree6 {[%clk 0:00:03]} 24. Rd8+ {[%clk 0:00:27]}  Kg7 {[%clk 0:00:02]} 25. Qd4+ {[%clk 0:00:26]}  Ref6 {[%clk 0:00:03]} 26. Rf1 {[%clk 0:00:19]}  c5 {[%clk 0:00:03]} 27. Qc3 {[%clk 0:00:18]}  Qf3 {[%clk 0:00:02]} 28. Qe5 {[%clk 0:00:15]}  Rg5 {[%clk 0:00:02]} 29. Qe8 {[%clk 0:00:14]}  Kg6 {[%clk 0:00:02]} 30. Qg8+ {[%clk 0:00:14]}  Kh5 {[%clk 0:00:03]} 31. Qh7 {[%clk 0:00:13]}  Kg4 {[%clk 0:00:03]} 32. Qd3 {[%clk 0:00:12]}  Kh3 {[%clk 0:00:03]} 33. Qd7+ {[%clk 0:00:10]}  Rg4 {[%clk 0:00:03]} 34. Qxg4+ {[%clk 0:00:08]}  Kxg4 {[%clk 0:00:04]} 35. Rfd1 {[%clk 0:00:07]}  Kh3 {[%clk 0:00:04]} 36. Kf1 {[%clk 0:00:07]}  Qxf2# {[%clk 0:00:04]} 0-1

[Event "December 5 Early 2023"]
[Site "https://www.chess.com"]
[Date "2023.12.05"]
[Round "3"]
[White "NastyaHn"]
[Black "Escudero Donoso, Felipe"]
[Result "0-1"]
[Board "210"]
[TimeControl "180+1"]
[BlackFideId "3410595"]
[WhiteElo "2224"]
[BlackElo "2424"]
[BlackTeam "CHI"]
[WhiteClock "0:00:00"]
[BlackClock "0:00:02"]

1. Nc3 {[%clk 0:02:59]}  d5 {[%clk 0:02:58]} 2. e4 {[%clk 0:02:59]}  dxe4 {[%clk 0:02:55]} 3. Nxe4 {[%clk 0:02:59]}  Nd7 {[%clk 0:02:51]} 4. d4 {[%clk 0:02:58]}  Ngf6 {[%clk 0:02:51]} 5. Nxf6+ {[%clk 0:02:58]}  Nxf6 {[%clk 0:02:52]} 6. Nf3 {[%clk 0:02:58]}  e6 {[%clk 0:02:52]} 7. Be2 {[%clk 0:02:57]}  b6 {[%clk 0:02:50]} 8. O-O {[%clk 0:02:57]}  Bb7 {[%clk 0:02:50]} 9. Be3 {[%clk 0:02:56]}  Be7 {[%clk 0:02:44]} 10. c4 {[%clk 0:02:56]}  O-O {[%clk 0:02:42]} 11. Qc2 {[%clk 0:02:54]}  Be4 {[%clk 0:02:27]} 12. Qb3 {[%clk 0:02:46]}  c5 {[%clk 0:02:15]} 13. Rfd1 {[%clk 0:02:37]}  cxd4 {[%clk 0:02:11]} 14. Nxd4 {[%clk 0:02:37]}  Qc7 {[%clk 0:01:57]} 15. Bf3 {[%clk 0:02:35]}  Bxf3 {[%clk 0:01:54]} 16. Nxf3 {[%clk 0:02:35]}  Rac8 {[%clk 0:01:50]} 17. Rac1 {[%clk 0:02:34]}  Rfd8 {[%clk 0:01:51]} 18. h3 {[%clk 0:02:09]}  Ne4 {[%clk 0:01:44]} 19. Qc2 {[%clk 0:02:00]}  Qb7 {[%clk 0:01:38]} 20. Rxd8+ {[%clk 0:01:55]}  Bxd8 {[%clk 0:01:25]} 21. b3 {[%clk 0:01:46]}  Bf6 {[%clk 0:01:22]} 22. Bd4 {[%clk 0:01:26]}  h6 {[%clk 0:00:54]} 23. Bxf6 {[%clk 0:01:25]}  Nxf6 {[%clk 0:00:55]} 24. Qd3 {[%clk 0:01:22]}  Nd5 {[%clk 0:00:31]} 25. Rd1 {[%clk 0:01:18]}  Nf4 {[%clk 0:00:31]} 26. Qe3 {[%clk 0:00:56]}  g5 {[%clk 0:00:28]} 27. h4 {[%clk 0:00:52]}  Qe7 {[%clk 0:00:21]} 28. g3 {[%clk 0:00:32]}  Ng6 {[%clk 0:00:11]} 29. hxg5 {[%clk 0:00:31]}  hxg5 {[%clk 0:00:12]} 30. Qxg5 {[%clk 0:00:31]}  Qb7 {[%clk 0:00:12]} 31. Qe3 {[%clk 0:00:31]}  Rc5 {[%clk 0:00:10]} 32. Rd8+ {[%clk 0:00:24]}  Kg7 {[%clk 0:00:11]} 33. Qc3+ {[%clk 0:00:18]}  f6 {[%clk 0:00:11]} 34. Qd3 {[%clk 0:00:16]}  Rc7 {[%clk 0:00:10]} 35. Nd4 {[%clk 0:00:13]}  Kf7 {[%clk 0:00:08]} 36. Nxe6 {[%clk 0:00:12]}  Ne5 {[%clk 0:00:06]} 37. Ng5+ {[%clk 0:00:04]}  fxg5 {[%clk 0:00:05]} 38. Qf5+ {[%clk 0:00:04]}  Ke7 {[%clk 0:00:05]} 39. Rd5 {[%clk 0:00:03]}  Nf7 {[%clk 0:00:04]} 40. Qe4+ {[%clk 0:00:02]}  Kf8 {[%clk 0:00:04]} 41. Qg6 {[%clk 0:00:02]}  Re7 {[%clk 0:00:03]} 42. Qf6 {[%clk 0:00:01]}  Qc7 {[%clk 0:00:03]} 43. Kg2 {[%clk 0:00:01]}  Rd7 {[%clk 0:00:02]} 44. Rf5 {[%clk 0:00:00]}  Qb7+ {[%clk 0:00:02]} 0-1